Cogmind - Beta 9.6 @@@ ROGUE MODE // 2020.05.09 @ 19:49:20 Player: Demise Result: Self-destructed Performance ------------- Evolutions (1) 500 Regions Visited (2) 400 Robots Destroyed (21) 105 Value Destroyed (308) 308 Prototype IDs (0) 0 Alien Tech Used (0) 0 Bonus (0) 0 TOTAL SCORE: 1313 Bonus ------- None Cogmind --------- Core Integrity 276/400 Matter 280/300 Energy 150/150 System Corruption 0% Temperature Cool (0) Movement Flying (120) Ox1 Location -9/Materials Parts ------- > --- POWER (2) -------- Light Ion Engine Light Ion Engine > --- PROPULSION (3) --- VTOL Module > --- UTILITY (2) ------ Signal Interpreter Terrain Scan Processor > --- WEAPON (2) ------- (None) > --- INVENTORY (4) ---- Ion Engine Small Storage Unit Mini Grenade Launcher Peak State ------------ > --- POWER ------------ Ion Engine > --- PROPULSION ------- Flight Unit VTOL Module > --- UTILITY ---------- Improved Terrain Scanner Seismic Analyzer > --- WEAPON ----------- Light Assault Rifle Mini Grenade Launcher > --- INVENTORY -------- Light Ion Engine Small Storage Unit Light Assault Rifle [Rating: 10] Favorites ----------- Power Ion Engine Engine Ion Engine Propulsion Flight Unit Leg Aluminum Leg Wheel Wheel Flight Unit Flight Unit Utility Improved Terrain Scanner Device Improved Terrain Scanner Storage Small Storage Unit Processor Seismic Analyzer Weapon Light Assault Rifle Ballistic Gun Light Assault Rifle Launcher Mini Grenade Launcher Build | -11 -10 -9 ------- Run | Scr Mat Mat Slots Evolved 2 | . . 2 Power 1 | . . 1 Propulsion 1 | . . 1 Utility . | . . . Weapon . | . . . Parts Attached 19 | 3 4 12 Power 4 | . . 4 Engine 4 | . . 4 Core . | . . . Reactor . | . . . Propulsion 6 | 2 2 2 Treads . | . . . Leg . | . . . Wheel 2 | 2 . . Hover . | . . . Flight 4 | . 2 2 Utility 4 | 1 1 2 Device 1 | 1 . . Storage . | . . . Processor 3 | . 1 2 Hackware . | . . . Protection . | . . . Artifact . | . . . Weapon 5 | . 1 4 Energy Gun . | . . . Energy Cannon . | . . . Ballistic Gun 3 | . 1 2 Ballistic Cannon . | . . . Launcher 2 | . . 2 Special Weapon . | . . . Impact Weapon . | . . . Slashing Weapon . | . . . Piercing Weapon . | . . . Special Melee Weapon . | . . . Unidentified Prototypes . | . . . Parts Lost 6 | . . 6 Power . | . . . Propulsion 3 | . . 3 Utility 1 | . . 1 Weapon 2 | . . 2 Highest Loss Streak 2 | . . 2 Average Slot Usage (%) 79 | . 94 69 Engine 12 | . 14 10 Wheel 7 | . 16 . Flight 14 | . 11 17 Device 10 | . 14 8 Storage 3 | . 8 . Processor 7 | . . 12 Ballistic Gun 22 | . 28 18 Naked Turns . | . . . Heaviest Build 12 | 12 12 8 Greatest Support 26 | 26 26 9 Greatest Overweight (x) 2 | . . 2 Average Overweight (x) . | . . . Largest Inventory Capacity 6 | 6 6 4 Average Capacity 4 | 6 5 4 Most Carried 6 | 6 6 4 Average Carried 3 | 5 3 3 Final Capacity 6 | 6 4 4 Final Carried 4 | 3 4 3 Class Distribution -------------------- 100% | Mutant Dominant Class ---------------- Mutant | -10/Materials Mutant | -9/Materials Resources | -11 -10 -9 ----------- Run | Scr Mat Mat Matter Collected 487 | 240 86 161 Remotely . | . . . Salvage Created 479 | 86 214 179 Parts 40 | 5 16 19 Haulers Intercepted 2 | . . 2 Recyclers Shooed 1 | 1 . . Parts Field Recycled . | . . . Retrieved Matter . | . . . Parts Self-Destructed . | . . . Prevented . | . . . Kills | -11 -10 -9 ------- Run | Scr Mat Mat Combat Hostiles Destroyed 15 | . 7 8 Guns 8 | . 7 1 AOE 7 | . . 7 Classes Destroyed 6 | 2 2 2 Tunneler 1 | 1 . . Hauler 2 | . . 2 Recycler 1 | 1 . . Watcher 2 | . . 2 Swarmer 11 | . 3 8 Grunt 4 | . 4 . Best Kill Streak 5 | 2 5 4 Combat Bots Only 5 | . 5 4 Max Kills in Single Turn 4 | 1 2 4 Gunslinging 1 | . 1 . Exploded 4 | . . 4 Melee . | . . . Uniques/NPCs Destroyed . | . . . Combat | -11 -10 -9 -------- Run | Scr Mat Mat Damage Taken 541 | . 158 383 Core 156 | . 32 124 Absorbed by Shields . | . . . Core Remaining (%) 93 | 100 87 . Volleys Fired 72 | 5 23 44 Largest 2 | 2 2 2 Hottest 50 | 40 40 50 Shots Fired 120 | 10 46 64 Gun 117 | 10 46 61 Cannon . | . . . Launcher 3 | . . 3 Special . | . . . Kinetic 117 | 10 46 61 Thermal . | . . . Explosive 3 | . . 3 Electromagnetic . | . . . Robot Hit Streak 12 | 9 12 8 Robot Miss Streak 6 | . 6 4 Penetration Max . | . . . Secondary Targets 1 | . 1 . Max Gunslinging Chain 1 | . 1 . Shots Hit Robots 74 | 9 25 40 Core Hits 36 | 4 13 19 Critical Hits . | . . . Critical Kills . | . . . Critical Parts Destroyed . | . . . Melee Attacks . | . . . Impact . | . . . Slashing . | . . . Piercing . | . . . Sneak Attacks . | . . . Combat Hostiles . | . . . Follow-up Attacks . | . . . Damage Inflicted 1104 | 67 214 823 Guns 604 | 67 214 323 Cannons . | . . . Explosions 500 | . . 500 Melee . | . . . Ramming . | . . . Kinetic 604 | 67 214 323 Thermal . | . . . Explosive 500 | . . 500 Electromagnetic . | . . . Impact . | . . . Slashing . | . . . Piercing . | . . . Highest Corruption . | . . . Average Corruption . | . . . Corruption Purged . | . . . Overload Shots . | . . . Overflow Damage . | . . . Projectiles . | . . . Explosions . | . . . Melee . | . . . Knockbacks . | . . . Impact . | . . . Kinetic . | . . . Secondary . | . . . Self-Inflicted Damage . | . . . Shots . | . . . Rammed . | . . . Targets Rammed . | . . . Kicked . | . . . Crushed . | . . . Highest Temperature 20 | . 20 16 Average Temperature 6 | . 6 7 Received Heat Transfer 210 | . 66 144 Siege Activations . | . . . Robots Corrupted . | . . . Combat Hostiles . | . . . Parts Fried . | . . . Impact Corruptions . | . . . Robots Melted . | . . . Combat Hostiles . | . . . Parts Melted . | . . . Heat Transferred . | . . . Parts Sabotaged . | . . . Parts Stolen . | . . . Parts Stripped . | . . . Power Chain Reactions . | . . . Missiles Intercepted . | . . . Alert | -11 -10 -9 ------- Run | Scr Mat Mat Peak Influence 406 | 10 211 406 Average Influence 166 | 7 92 238 Maximum Alert Level 2 | . 1 2 Low Security (%) 65 | 100 98 38 Level 1 32 | . 1 57 Level 2 2 | . . 3 Level 3 . | . . . Level 4 . | . . . Level 5 . | . . . High Security . | . . . Max Security . | . . . Squads Dispatched 3 | . 2 1 Investigation 2 | . 2 . Extermination . | . . . Reinforcement 1 | . . 1 Assault . | . . . Garrison . | . . . Intercept . | . . . Construction Impeded . | . . . Haulers Reinforced . | . . . Stealth | -11 -10 -9 --------- Run | Scr Mat Mat Distress Signals 6 | . 1 5 Communications Jammed . | . . . Distress Signals . | . . . Times Spotted 41 | . 14 27 Peak Tracking Total 10 | . 4 10 Tactical Retreats 6 | . 2 4 Traps | -11 -10 -9 ------- Run | Scr Mat Mat Traps Triggered 1 | . 1 . Indirectly . | . . . Trap Hack Attempts . | . . . Triggered . | . . . Disarmed . | . . . Reprogrammed . | . . . Reused . | . . . Traps Extracted . | . . . Installed . | . . . Triggered . | . . . Machines | -11 -10 -9 ---------- Run | Scr Mat Mat Machines Disabled . | . . . Max in Single Turn . | . . . Machines Sabotaged . | . . . Garrisons Compromised . | . . . Overloaded Fab Kills . | . . . Fab Network Shutdowns . | . . . Hacking | -11 -10 -9 --------- Run | Scr Mat Mat Machines Accessed 7 | . 2 5 Terminals 7 | . 2 5 Fabricators . | . . . Repair Stations . | . . . Recycling Units . | . . . Scanalyzers . | . . . Garrison Access . | . . . Total Hacks 17 | . 3 14 Successful 8 | . . 8 Failed 9 | . 3 6 Catastrophic 3 | . 2 1 Database Lockouts . | . . . Manual 14 | . 3 11 Terminals 17 | . 3 14 Fabricators . | . . . Repair Stations . | . . . Recycling Units . | . . . Scanalyzers . | . . . Garrison Access . | . . . Terminal Hacks 2 | . . 2 Robot Analysis 1 | . . 1 Level Access Points 1 | . . 1 Fabricator Hacks . | . . . Repair Station Hacks . | . . . Recycling Unit Hacks . | . . . Scanalyzer . | . . . Garrison Access Hacks . | . . . Unauthorized Hacks 6 | . . 6 Terminals 6 | . . 6 Track 1 | . . 1 Botnet 5 | . . 5 Fabricators . | . . . Repair Stations . | . . . Recycling Units . | . . . Scanalyzers . | . . . Garrison Access . | . . . Data Cores Recovered . | . . . Used . | . . . Hacking Detections 6 | . 2 4 Full Trace Events 1 | . 1 . Feedback Events . | . . . Feedback Blocked . | . . . Robot Schematics Acquired . | . . . Robots Built . | . . . Matter . | . . . Time . | . . . Total Robot Build Rating . | . . . Part Schematics Acquired . | . . . Parts Built . | . . . Matter . | . . . Time . | . . . Total Part Build Rating . | . . . Parts Repaired . | . . . Time . | . . . Parts Recycled . | . . . Recycled Matter . | . . . Retrieved Matter . | . . . Retrieved Components . | . . . Parts Scanalyzed . | . . . Part Schematics Acquired . | . . . Parts Damaged . | . . . Bothacking | -11 -10 -9 ------------ Run | Scr Mat Mat Used RIF Installer . | . . . Robots Hacked . | . . . Non-combat . | . . . Combat . | . . . Robot Hacks Applied . | . . . Relay Couplers Released . | . . . Robots Rewired . | . . . Allies Hacked . | . . . Hacks Repelled . | . . . Allies | -11 -10 -9 -------- Run | Scr Mat Mat Total Allies . | . . . Largest Group . | . . . Highest-Rated Group . | . . . Highest-Rated Ally . | . . . Total Orders . | . . . Ally Attacks . | . . . Total Damage . | . . . Kills . | . . . Allies Corrupted . | . . . Allies Melted . | . . . Intel | -11 -10 -9 ------- Run | Scr Mat Mat Robot Analysis Total 1 | . . 1 Derelict Logs Recovered . | . . . Drone Launches . | . . . Drone Recoveries . | . . . Exploration | -11 -10 -9 ------------- Run | Scr Mat Mat Turns Passed 634 | 38 249 347 Spaces Moved 867 | 18 296 553 Core 37 | . . 37 Treads . | . . . Legs 9 | 9 . . Wheels 128 | 9 119 . Hover . | . . . Flight 693 | . 177 516 Fastest Speed 37 | 90 37 37 Average Speed 47 | 105 58 40 Slowest Speed 150 | 120 90 150 Overloaded Moves . | . . . Propulsion Burnouts . | . . . Robots Hopped 6 | . 1 5 Cave-ins Triggered . | . . . Exploration Rate (%) 34 | 3 54 46 Regions Visited 2 Branch Regions . Pre-discovered Areas . | . . . Known Exits Taken . | . . . Unknown Exits Taken 2 | 1 1 . Scrap Searched . | . . . Spaces Dug . | . . . Terrain Destroyed 23 | . . 23 Melee . | . . . Projectile . | . . . AOE 23 | . . 23 Actions | -11 -10 -9 --------- Run | Scr Mat Mat Total 984 | 30 335 619 Wait 9 | . 4 5 Move 853 | 17 293 543 Hop 6 | . 1 5 Pick Up 8 | 1 4 3 Fast Attach 6 | 1 1 4 Attach 7 | 2 2 3 Detach 5 | . 2 3 Swap 6 | . 1 5 Drop 12 | 4 4 4 Fire 72 | 5 23 44 Melee . | . . . Ram . | . . . Kick . | . . . Crush . | . . . Escape Stasis . | . . . Rewire . | . . . Trap . | . . . Miscellaneous . | . . . Route ------- -11/Scrapyard -10/Materials -9/Materials (discovered 5 exits: *Mat x3 / [*Min x2]) History --------- Turn | Location | Event 7 | -11/Scrapyard | Discovered new exit (range 3) 39 | -11/Scrapyard | Entered Materials 279 | -10/Materials | Discovered new exit (range 6) 288 | -10/Materials | Entered another Materials area 288 | -9/Materials | Evolved 2 slots: Power x1, Propulsion x1 326 | -9/Materials | Build established: Mutant 378 | -9/Materials | Discovered new exit (range 6) 383 | -9/Materials | Identified exit to Materials 471 | -9/Materials | Discovered new exit (range 7) 635 | -9/Materials | Self-destructed Last Messages --------------- 00549_ K-01 Serf collects debris. 00550_ U-05 Engineer lays Concrete. 00550_ Acquired 23 matter. 00551_ W-16 Scout sends out distress signal. 00552_ U-05 Engineer builds a Wall. 00552_ K-01 Serf collects debris. 00554_ Discarded Seismic Analyzer. 00557_ Lgt. Assault Rifle destroyed. 00560_ K-01 Serf cleans the Atomic Centrifuge. 00561_ Imp. Terrain Scanner destroyed. 00567_ W-16 Scout sends out distress signal. 00582_ W-16 Scout destroyed. 00584_ Acquired Signal Interpreter. 00593_ K-01 Serf collects debris. 00593_ Acquired Lgt. Ion Engine. 00596_ Acquired 16 matter. 00605_ W-16 Scout sends out distress signal. 00615_ Flight Unit destroyed. 00631_ W-16 Scout destroyed. 00634_ Lgt. Assault Rifle destroyed. Map ----- +----------------------------------------------------+ | # ######### g [ # """ # | | # """ # """?# | | #### ########## """ ########### ""??? | | # #??# ########## """ # ???? [ ??? | | ## ##??# # ] ]#??] """ + ?? ????####Y?#? | | ? ##?# # #?? #?????????????????? | | #?## # ==! ### #?????#???#???????? | | ######## / ==! + ####+#????#????#???????#? | | ?##???## [ # =! ### #????? ??????#??????????? | | #??##?## # #?? #?????????#?????????????? | | ???????#! *## ####?# # ??????????????????????? | | ####?#?# ########## #? ?? ??????????????????? | | ###?# # ## #???????????????????????? | | ##??# # ## #??????"????????????????? | | " #???# + ## #???????????????????????? | | " ##??# # ## #?????"?????????????????? | | " ##??# # ## #???????????????????????? | | ##?## ########## #???#???????????????????? | | #??# ######### #####???????????????????? | | #?## #???????????????????? | | ##?# T #???????????????????? | | ###### ###########+????????? | | ########### ??????? | | #############? #